fUST/lending_fUST_20250917
["ID","MTS","AMOUNT","RATE_DAILY","PERIOD"]
[385884582,1758093057159,-332.23952839,0.00024152,2]
[385884583,1758093057168,-260.0,0.00024181,2]
[385884584,1758093057177,-960.44,0.000243,7]
[385884585,1758093057187,-20275.45,0.000243,7]
[385884586,1758093057196,-4540.57610436,0.00024373,2]
[385884587,1758093057205,-397.33206441,0.00024373,2]
[385884588,1758093057214,-366.86362021,0.00024373,2]
[385884589,1758093057223,-480.0,0.00024382,3]
[385884590,1758093057232,-834.7,0.00024382,3]
[385884591,1758093057241,-799.92,0.00024382,3]
[385884592,1758093057251,-523.56,0.00024382,3]
[385884593,1758093057260,-500.0,0.00024383,2]
[385884594,1758093057270,-480.0,0.00024383,3]
[385884595,1758093057279,-480.0,0.00024383,3]
[385884596,1758093057289,-480.0,0.00024383,3]
[385884597,1758093057298,-846.15,0.00024383,3]
[385884598,1758093057308,-480.0,0.00024383,3]
[385884599,1758093057317,-480.0,0.00024383,3]
[385884600,1758093057327,-480.0,0.00024383,3]
[385884601,1758093057335,-480.0,0.00024383,3]
[385884602,1758093057345,-480.0,0.00024383,3]
[385884603,1758093057354,-291.4,0.00024383,3]
[385884604,1758093057363,-391.9,0.00024383,3]
[385884605,1758093057373,-480.0,0.00024383,3]
[385884606,1758093057382,-480.0,0.00024383,3]
[385884607,1758093057392,-751.17,0.00024383,3]
[385884608,1758093057401,-480.0,0.00024383,3]
[385884609,1758093057410,-689.87,0.00024383,3]
[385884610,1758093057419,-722.86,0.00024383,3]
[385884611,1758093057429,-1454.65,0.00024383,3]
[385884612,1758093057439,-1049.21,0.00024383,3]
[385884613,1758093057449,-480.0,0.00024383,3]
[385884614,1758093057458,-887.81,0.00024383,3]
[385884615,1758093057467,-480.0,0.00024383,3]
[385884616,1758093057477,-1399.63,0.00024383,3]
[385884617,1758093057486,-1279.48,0.00024383,3]
[385884618,1758093057495,-480.0,0.00024383,3]
[385884619,1758093057504,-412.95,0.00024383,3]
[385884620,1758093057514,-2401.66,0.00024383,3]
[385884621,1758093057523,-480.0,0.00024383,3]
[385884622,1758093057532,-1379.61,0.00024383,3]
[385884623,1758093057541,-480.0,0.00024383,3]
[385884624,1758093057550,-480.0,0.00024383,3]
[385884625,1758093057559,-501.68,0.00024383,3]
[385884626,1758093057569,-480.0,0.00024383,3]
[385884627,1758093057578,-153.35,0.00024383,3]
[385884628,1758093057587,-480.0,0.00024383,3]
[385884629,1758093057596,-1329.91,0.00024383,3]
[385884630,1758093057605,-480.0,0.00024383,3]
[385884631,1758093057614,-480.0,0.00024383,3]
[385884632,1758093057624,-480.0,0.00024383,3]
[385884633,1758093057633,-5157.5,0.00024383,3]
[385884634,1758093057642,-480.0,0.00024383,3]
[385884635,1758093057652,-10165.28,0.00024383,3]
[385884636,1758093057662,-480.0,0.00024383,3]
[385884637,1758093057672,-480.0,0.00024383,3]
[385884638,1758093057682,-367.65,0.00024383,3]
[385884639,1758093057691,-480.0,0.00024383,3]
[385884640,1758093057701,-480.0,0.00024383,3]
[385884641,1758093057709,-251599.8701865,0.0002444,2]
[385884642,1758093057722,-39549.3539489,0.0002444,2]
[385884643,1758093057733,-1824.1581881,0.0002444,2]
[385884645,1758093187644,608.41421934,0.000199,2]
[385884646,1758093187748,608.41421914,0.00021149,2]
[385884647,1758093301966,-4894.08,0.0002162,2]
[385884657,1758093373327,567.85327141,0.000199,2]
[385884658,1758093373423,567.85327119,0.00021149,2]
[385884659,1758093382157,-4956.37,0.00021621,2]
[385884660,1758093559824,529.99638656,0.000199,2]
[385884661,1758093559922,529.99638644,0.00021149,2]
[385884662,1758093582336,-4980.56,0.00021471,2]
[385884663,1758093622408,-4917.17,0.00021472,2]
[385884664,1758093709624,-4854.59,0.00021626,2]
[385884665,1758093743698,581.85572868,0.000199,2]
[385884666,1758093743732,581.85572854,0.00021149,2]
[385884667,1758093816483,-900.0,0.00021624,2]
[385884668,1758093886967,-4781.35,0.00021613,2]
[385884669,1758093940635,543.06534685,0.000199,2]
[385884670,1758093940743,543.06534663,0.00021149,2]
[385884673,1758093980056,-4720.49,0.00021477,2]
[385884674,1758093980085,-59.03,0.000217,2]
[385884676,1758094069645,10000.01,0.00018,2]
[385884677,1758094069669,10000.01,0.00018,2]
[385884678,1758094069693,10000.01,0.00018,2]
[385884679,1758094069717,10000.01,0.00018,2]
[385884680,1758094069740,10000.01,0.00018,2]
[385884681,1758094069765,10000.01,0.00018,2]
[385884682,1758094069789,1482.40647549,0.00018,2]
[385884683,1758094115813,8517.60352451,0.0002,2]
[385884684,1758094115838,10000.01,0.0002,2]
[385884685,1758094115860,1482.38647549,0.0002,2]
[385884686,1758094118979,9524.067182,0.00026,30]
[385884692,1758094130929,663.96556502,0.000199,2]
[385884693,1758094131071,663.96556494,0.00021149,2]
[385884752,1758094231882,-4660.41,0.00021615,2]
[385884754,1758094231892,-500.0,0.000217,2]
[385884756,1758094231901,-2265.89496042,0.00021817,2]
[385884758,1758094231912,-1335.13735634,0.00021817,2]
[385884760,1758094231927,-1820.42010332,0.00021817,2]
[385884762,1758094231936,-300.0,0.00021916,2]
[385884764,1758094231946,-300.0,0.00021916,2]
[385884767,1758094231955,-300.0,0.00021916,2]
[385884770,1758094231964,-300.0,0.00021916,2]
[385884773,1758094231974,-1200.0,0.00021916,2]
[385884775,1758094231983,-500.0,0.00021917,2]
[385884777,1758094231993,-186.05,0.00021917,2]
[385884779,1758094232002,-485.0,0.00021917,2]
[385884781,1758094232011,-480.0,0.00021917,2]
[385884783,1758094232020,-536.15,0.00021917,2]
[385884785,1758094232029,-480.0,0.00021917,2]
[385884787,1758094232038,-466.0,0.00021917,2]
[385884789,1758094232047,-480.0,0.00021917,2]
[385884791,1758094232056,-480.0,0.00021917,2]
[385884793,1758094232065,-480.0,0.00021917,2]
[385884795,1758094232074,-480.0,0.00021917,2]
[385884797,1758094232083,-294.52,0.00021917,2]
[385884798,1758094232093,-480.0,0.00021917,2]
[385884800,1758094232101,-451.24,0.00021917,2]
[385884802,1758094232109,-6210.46,0.00021917,2]
[385884804,1758094232118,-480.0,0.00021917,2]
[385884806,1758094232127,-480.0,0.00021917,2]
[385884808,1758094232136,-480.0,0.00021917,2]
[385884810,1758094232146,-480.0,0.00021917,2]
[385884812,1758094232155,-480.0,0.00021917,2]
[385884814,1758094232164,-404.63410435,0.00021917,2]
[385884816,1758094232173,-480.0,0.00021917,2]
[385884817,1758094232182,-3127.92,0.00021917,2]
[385884819,1758094232192,-434.27767223,0.00021917,2]
[385884821,1758094232201,-398.0095428,0.00021917,2]
[385884824,1758094232212,-81.9904572,0.00021917,2]
[385884826,1758094232221,-2286.39,0.00021917,2]
[385884828,1758094232230,-480.0,0.00021917,2]
[385884829,1758094232239,-480.0,0.00021917,2]
[385884831,1758094232249,-480.0,0.00021917,2]
[385884833,1758094232258,-480.0,0.00021917,2]
[385884835,1758094232268,-480.0,0.00021917,2]
[385884837,1758094232277,-1465.18,0.00021917,2]
[385884839,1758094232286,-480.0,0.00021917,2]
[385884841,1758094232295,-616.93,0.00021917,2]
[385884843,1758094232304,-886.55,0.00021917,2]
[385884845,1758094232314,-862.13,0.00021917,2]
[385884847,1758094232323,-537.46,0.00021917,2]
[385884849,1758094232332,-480.0,0.00021917,2]
[385884851,1758094232342,-480.0,0.00021917,2]
[385884853,1758094232351,-595.84,0.00021917,2]
[385884855,1758094232360,-480.0,0.00021917,2]
[385884857,1758094232369,-861.17,0.00021917,2]
[385884859,1758094232378,-480.0,0.00021917,2]
[385884861,1758094232388,-480.0,0.00021917,2]
[385884862,1758094232397,-480.0,0.00021917,2]
[385884864,1758094232407,-480.0,0.00021917,2]
[385884866,1758094232417,-480.0,0.00021917,2]
[385884868,1758094232427,-480.0,0.00021917,2]
[385884870,1758094232436,-810.17,0.00021917,2]
[385884872,1758094232445,-480.0,0.00021917,2]
[385884874,1758094232455,-480.0,0.00021917,2]
[385884876,1758094232464,-228.7,0.00021917,2]
[385884878,1758094232474,-480.0,0.00021917,2]
[385884880,1758094232484,-480.0,0.00021917,2]
[385884882,1758094232493,-480.0,0.00021917,2]
[385884884,1758094232502,-480.0,0.00021917,2]
[385884886,1758094232516,-480.0,0.00021917,2]
[385884888,1758094232526,-480.0,0.00021917,2]
[385884890,1758094232536,-480.0,0.00021917,2]
[385884892,1758094232545,-1135.63,0.00021917,2]
[385884894,1758094232554,-480.0,0.00021917,2]
[385884896,1758094232563,-480.0,0.00021917,2]
[385884898,1758094232572,-841.47,0.00021917,2]
[385884900,1758094232581,-480.0,0.00021917,2]
[385884902,1758094232591,-480.0,0.00021917,2]
[385884904,1758094232601,-480.0,0.00021917,2]
[385884906,1758094232610,-635.38,0.00021917,2]
[385884908,1758094232619,-480.0,0.00021917,2]
[385884910,1758094232628,-480.0,0.00021917,2]
[385884911,1758094232637,-160.0,0.0002198,2]
[385884913,1758094232648,-531.53982319,0.0002198,2]
[385884915,1758094232657,-160.0,0.0002198,2]
[385884917,1758094232666,-160.0,0.0002198,2]
[385884919,1758094232676,-160.0,0.0002198,2]
[385884921,1758094232685,-160.0,0.0002198,2]
[385884923,1758094232694,-233.34517135,0.00021987,2]
[385884925,1758094232703,-847.79063332,0.00021987,2]
[385884927,1758094232712,-217.90857035,0.00021987,2]
[385884929,1758094232722,-160.0,0.00021987,2]
[385884931,1758094232731,-457.20318657,0.00022026,2]
[385884933,1758094232739,-500.0,0.00022173,2]
[385884935,1758094232749,-458.30515009,0.00022173,2]
[385884936,1758094232759,-196.3283997,0.0002219,2]
[385884938,1758094232769,-500.0,0.0002219,2]
[385884940,1758094232778,-500.0,0.0002219,2]
[385884942,1758094232787,-323.5731535,0.0002219,2]
[385884944,1758094232796,-486.80746865,0.0002219,2]
[385884946,1758094232805,-480.0,0.00022191,3]
[385884948,1758094232815,-480.0,0.00022191,3]
[385884950,1758094232824,-412.25,0.00022191,3]
[385884952,1758094232834,-480.0,0.00022191,3]
[385884954,1758094232843,-6210.46,0.00022191,3]
[385884956,1758094232852,-480.0,0.00022191,3]
[385884958,1758094232861,-480.0,0.00022191,3]
[385884960,1758094232871,-480.0,0.00022191,3]
[385884962,1758094232879,-3127.92,0.00022191,3]
[385884964,1758094232888,-480.0,0.00022191,3]
[385884965,1758094232897,-2286.39,0.00022191,3]
[385884967,1758094232906,-480.0,0.00022191,3]
[385884969,1758094232915,-480.0,0.00022191,3]
[385884971,1758094232925,-480.0,0.00022191,3]
[385884973,1758094232934,-480.0,0.00022191,3]
[385884975,1758094232943,-480.0,0.00022191,3]
[385884977,1758094232953,-1465.18,0.00022191,3]
[385884979,1758094232962,-480.0,0.00022191,3]
[385884981,1758094232971,-616.93,0.00022191,3]
[385884983,1758094232980,-886.55,0.00022191,3]
[385884985,1758094232989,-862.13,0.00022191,3]
[385884987,1758094232998,-537.46,0.00022191,3]
[385884989,1758094233008,-480.0,0.00022191,3]
[385884991,1758094233017,-480.0,0.00022191,3]
[385884993,1758094233026,-595.84,0.00022191,3]
[385884995,1758094233036,-480.0,0.00022191,3]
[385884997,1758094233045,-861.17,0.00022191,3]
[385884998,1758094233054,-480.0,0.00022191,3]
[385884999,1758094233063,-480.0,0.00022191,3]
[385885000,1758094233072,-480.0,0.00022191,3]
[385885001,1758094233081,-480.0,0.00022191,3]
[385885002,1758094233090,-480.0,0.00022191,3]
[385885003,1758094233099,-480.0,0.00022191,3]
[385885004,1758094233108,-810.17,0.00022191,3]
[385885005,1758094233118,-480.0,0.00022191,3]
[385885006,1758094233128,-480.0,0.00022191,3]
[385885007,1758094233137,-480.0,0.00022191,3]
[385885008,1758094233146,-480.0,0.00022191,3]
[385885009,1758094233155,-480.0,0.00022191,3]
[385885010,1758094233164,-480.0,0.00022191,3]
[385885011,1758094233174,-480.0,0.00022191,3]
[385885012,1758094233183,-202.8,0.00022191,3]
[385885013,1758094233192,-480.0,0.00022191,3]
[385885014,1758094233201,-1135.63,0.00022191,3]
[385885015,1758094233210,-480.0,0.00022191,3]
[385885016,1758094233219,-589.7,0.00022191,3]
[385885017,1758094233229,-841.47,0.00022191,3]
[385885018,1758094233238,-480.0,0.00022191,3]
[385885019,1758094233248,-480.0,0.00022191,3]
[385885020,1758094233257,-480.0,0.00022191,3]
[385885021,1758094233266,-635.38,0.00022191,3]
[385885022,1758094233276,-480.0,0.00022191,2]
[385885023,1758094233285,-480.0,0.00022191,3]
[385885024,1758094233295,-179.83814567,0.00022374,2]
[385885025,1758094233304,-663.96556494,0.00022398,2]
[385885026,1758094233313,-480.0,0.00022465,3]
[385885027,1758094233322,-206.1,0.00022465,3]
[385885028,1758094233332,-6210.46,0.00022465,3]
[385885030,1758094233341,-480.0,0.00022465,3]
[385885031,1758094233351,-480.0,0.00022465,3]
[385885032,1758094233360,-480.0,0.00022465,3]
[385885034,1758094233370,-3127.92,0.00022465,3]
[385885036,1758094233379,-480.0,0.00022465,3]
[385885038,1758094233389,-480.0,0.00022465,3]
[385885040,1758094233398,-2286.39,0.00022465,3]
[385885042,1758094233407,-480.0,0.00022465,3]
[385885044,1758094233416,-480.0,0.00022465,3]
[385885046,1758094233425,-480.0,0.00022465,3]
[385885048,1758094233434,-480.0,0.00022465,3]
[385885050,1758094233443,-1465.18,0.00022465,3]
[385885051,1758094233453,-480.0,0.00022465,3]
[385885053,1758094233462,-616.93,0.00022465,3]
[385885056,1758094233472,-886.55,0.00022465,3]
[385885057,1758094233481,-862.13,0.00022465,3]
[385885059,1758094233491,-537.46,0.00022465,3]
[385885061,1758094233500,-480.0,0.00022465,3]
[385885064,1758094233511,-595.84,0.00022465,3]
[385885066,1758094233520,-480.0,0.00022465,3]
[385885067,1758094233530,-861.17,0.00022465,3]
[385885070,1758094233540,-364.55,0.00022465,3]
[385885072,1758094233550,-480.0,0.00022465,3]
[385885073,1758094233559,-480.0,0.00022465,3]
[385885075,1758094233568,-480.0,0.00022465,3]
[385885078,1758094233578,-480.0,0.00022465,3]
[385885092,1758094233705,-441.5,0.00022465,3]
[385885094,1758094233716,-810.17,0.00022465,3]
[385885096,1758094233726,-450.69349381,0.00022465,3]
[385885098,1758094233735,-558.3,0.00022465,3]
[385885100,1758094233745,-480.0,0.00022465,3]
[385885102,1758094233754,-480.0,0.00022465,3]
[385885104,1758094233764,-1135.63,0.00022465,3]
[385885106,1758094233774,-480.0,0.00022465,3]
[385885108,1758094233783,-841.47,0.00022465,3]
[385885110,1758094233792,-480.0,0.00022465,3]
[385885112,1758094233802,-635.38,0.00022465,3]
[385885114,1758094233811,-480.0,0.00022465,3]
[385885116,1758094233820,-500.0,0.00022516,2]
[385885118,1758094233830,-500.0,0.00022516,2]
[385885120,1758094233840,-500.0,0.00022569,2]
[385885121,1758094233849,-500.0,0.00022569,2]
[385885123,1758094233859,-500.0,0.00022658,2]
[385885125,1758094233868,-500.0,0.00022658,2]
[385885127,1758094233878,-348.18,0.00022729,3]
[385885129,1758094233888,-174.09,0.00022729,3]
[385885131,1758094233897,-522.27,0.00022729,3]
[385885133,1758094233906,-480.0,0.00022739,3]
[385885135,1758094233917,-6210.46,0.00022739,3]
[385885138,1758094233927,-480.0,0.00022739,3]
[385885139,1758094233937,-480.0,0.00022739,3]
[385885141,1758094233947,-480.0,0.00022739,3]
[385885143,1758094233956,-3127.92,0.00022739,3]
[385885146,1758094233965,-480.0,0.00022739,3]
[385885147,1758094233975,-480.0,0.00022739,3]
[385885149,1758094233984,-2286.39,0.00022739,3]
[385885151,1758094233994,-480.0,0.00022739,3]
[385885153,1758094234003,-480.0,0.00022739,3]
[385885155,1758094234012,-480.0,0.00022739,3]
[385885157,1758094234022,-480.0,0.00022739,3]
[385885159,1758094234031,-1465.18,0.00022739,3]
[385885161,1758094234041,-480.0,0.00022739,3]
[385885163,1758094234050,-616.93,0.00022739,3]
[385885165,1758094234059,-886.55,0.00022739,3]
[385885167,1758094234068,-862.13,0.00022739,3]
[385885169,1758094234077,-537.46,0.00022739,3]
[385885171,1758094234087,-480.0,0.00022739,3]
[385885173,1758094234096,-595.84,0.00022739,3]
[385885175,1758094234105,-619.45,0.00022739,3]
[385885177,1758094234114,-861.17,0.00022739,3]
[385885179,1758094234124,-480.0,0.00022739,3]
[385885181,1758094234133,-480.0,0.00022739,3]
[385885183,1758094234143,-480.0,0.00022739,3]
[385885185,1758094234153,-480.0,0.00022739,3]
[385885187,1758094234163,-810.17,0.00022739,3]
[385885189,1758094234172,-480.0,0.00022739,3]
[385885191,1758094234181,-480.0,0.00022739,3]
[385885193,1758094234191,-1135.63,0.00022739,3]
[385885195,1758094234200,-480.0,0.00022739,3]
[385885197,1758094234209,-841.47,0.00022739,3]
[385885199,1758094234219,-480.0,0.00022739,3]
[385885201,1758094234228,-635.38,0.00022739,3]
[385885203,1758094234238,-480.0,0.00022739,3]
[385885205,1758094234247,-1000.0,0.00022796,2]
[385885207,1758094234256,-468.93663208,0.00022913,2]
[385885209,1758094234266,-847.79063332,0.00023,3]
[385885211,1758094234276,-696.35,0.00023003,3]
[385885213,1758094234285,-450.46299357,0.00023012,2]
[385885215,1758094234295,-185.99695389,0.00023012,2]
[385885217,1758094234304,-480.0,0.00023013,3]
[385885219,1758094234313,-6210.46,0.00023013,3]
[385885221,1758094234322,-480.0,0.00023013,3]
[385885223,1758094234332,-480.0,0.00023013,3]
[385885225,1758094234342,-480.0,0.00023013,3]
[385885227,1758094234351,-3127.92,0.00023013,3]
[385885229,1758094234360,-480.0,0.00023013,3]
[385885231,1758094234369,-480.0,0.00023013,3]
[385885233,1758094234378,-2286.39,0.00023013,3]
[385885235,1758094234388,-465.1,0.00023013,3]
[385885237,1758094234397,-480.0,0.00023013,3]
[385885239,1758094234407,-480.0,0.00023013,3]
[385885241,1758094234416,-507.5,0.00023013,3]
[385885243,1758094234426,-1465.18,0.00023013,3]
[385885245,1758094234435,-480.0,0.00023013,3]
[385885247,1758094234445,-616.93,0.00023013,3]
[385885249,1758094234454,-886.55,0.00023013,3]
[385885251,1758094234463,-862.13,0.00023013,3]
[385885253,1758094234473,-537.46,0.00023013,3]
[385885255,1758094234482,-90.14898554,0.00023013,3]
[385885263,1758094234547,-389.85101446,0.00023013,3]
[385885265,1758094234556,-595.84,0.00023013,3]
[385885267,1758094234565,-861.17,0.00023013,3]
[385885269,1758094234574,-598.45,0.00023013,3]
[385885271,1758094234584,-480.0,0.00023013,3]
[385885273,1758094234594,-480.0,0.00023013,3]
[385885275,1758094234604,-480.0,0.00023013,3]
[385885277,1758094234614,-810.17,0.00023013,3]
[385885279,1758094234623,-480.0,0.00023013,3]
[385885281,1758094234632,-480.0,0.00023013,3]
[385885283,1758094234642,-1135.63,0.00023013,3]
[385885286,1758094234651,-207.95,0.00023013,3]
[385885288,1758094234662,-841.47,0.00023013,3]
[385885290,1758094234671,-480.0,0.00023013,3]
[385885292,1758094234680,-635.38,0.00023013,3]
[385885294,1758094234689,-506.11662782,0.00023117,2]
[385885295,1758094234699,-977.0,0.00023149,2]
[385885297,1758094234708,-2157.0,0.00023149,2]
[385885299,1758094234717,-634.0,0.00023149,2]
[385885301,1758094234726,-410.0,0.00023149,2]
[385885303,1758094234735,-1000.0,0.00023206,2]
[385885305,1758094234744,-468.93663204,0.0002327,2]
[385885307,1758094234753,-480.0,0.00023287,3]
[385885310,1758094234763,-6210.46,0.00023287,3]
[385885311,1758094234772,-480.0,0.00023287,3]
[385885313,1758094234781,-480.0,0.00023287,3]
[385885315,1758094234790,-480.0,0.00023287,3]
[385885317,1758094234800,-3127.92,0.00023287,3]
[385885319,1758094234809,-480.0,0.00023287,3]
[385885321,1758094234818,-480.0,0.00023287,3]
[385885323,1758094234827,-2286.39,0.00023287,3]
[385885325,1758094234836,-480.0,0.00023287,3]
[385885327,1758094234845,-480.0,0.00023287,3]
[385885329,1758094234855,-5125.21,0.00023287,2]
[385885332,1758094234865,-1465.18,0.00023287,3]
[385885333,1758094234875,-480.0,0.00023287,3]
[385885335,1758094234884,-522.17754343,0.00023287,3]
[385885441,1758094237753,-480.0,0.00021917,2]
[385885443,1758094237762,-480.0,0.00021917,2]
[385885445,1758094237771,-480.0,0.00021917,2]
[385885447,1758094237781,-480.0,0.00021917,2]
[385885448,1758094237790,-480.0,0.00021917,2]
[385885450,1758094237799,-480.0,0.00022191,3]
[385885453,1758094237809,-480.0,0.00022191,3]
[385885455,1758094237818,-480.0,0.00022191,3]
[385885456,1758094237827,-480.0,0.00022465,3]
[385885458,1758094237836,-208.94,0.00022465,3]
[385885461,1758094237846,-97.99561411,0.00022739,3]
[385885463,1758094237857,-310.96511232,0.00022739,3]
[385885465,1758094237868,-71.03927357,0.00022739,3]
[385885467,1758094237877,-384.66489739,0.00023013,3]
[385885696,1758094240040,-480.0,0.00021917,2]
[385885698,1758094240050,-480.0,0.00021917,2]
[385885700,1758094240059,-578.78,0.00022191,3]
[385885702,1758094240069,-480.0,0.00022191,3]
[385885704,1758094240078,-480.0,0.00022465,3]
[385885705,1758094240088,-480.0,0.00022739,3]
[385885708,1758094240098,-531.53982319,0.00023,3]
[385885710,1758094240107,-95.33510261,0.00023013,3]
[385885712,1758094240116,-480.0,0.00023013,3]
[385885714,1758094240126,-94.75245657,0.00023287,3]
[385885716,1758094240135,-886.55,0.00023287,3]
[385885718,1758094240144,-862.13,0.00023287,3]
[385885720,1758094240153,-537.46,0.00023287,3]
[385885722,1758094240162,-480.0,0.00023287,3]
[385885724,1758094240171,-595.84,0.00023287,3]
[385885726,1758094240180,-861.17,0.00023287,3]
[385885728,1758094240190,-480.0,0.00023287,3]
[385885729,1758094240199,-480.0,0.00023287,3]
[385885730,1758094240208,-480.0,0.00023287,3]
[385885731,1758094240217,-810.17,0.00023287,3]
[385885732,1758094240226,-480.0,0.00023287,3]
[385885733,1758094240235,-480.0,0.00023287,3]
[385885734,1758094240244,-1135.63,0.00023287,3]
[385885735,1758094240253,-841.47,0.00023287,3]
[385885736,1758094240262,-480.0,0.00023287,3]
[385885737,1758094240271,-635.38,0.00023287,3]
[385885738,1758094240281,-207.95,0.00023287,3]
[385885739,1758094240291,-480.0,0.00023287,3]
[385885740,1758094240300,-8539.37960052,0.00023287,2]
[385885751,1758094243103,-480.0,0.00021917,2]
[385885752,1758094243112,-127.59921339,0.00021917,2]
[385885763,1758094245851,-352.40078661,0.00021917,2]
[385885764,1758094245861,-628.98937337,0.00021917,2]
[385885765,1758094245871,-134.32405843,0.00022191,3]
[385885766,1758094245882,-345.67594157,0.00022191,3]
[385885767,1758094245892,-480.0,0.00022191,3]
[385885768,1758094245901,-480.0,0.00022465,3]
[385885769,1758094245910,-480.0,0.00022739,3]
[385885770,1758094245919,-480.0,0.00023013,3]
[385885771,1758094245929,-480.0,0.00023013,3]
[385885772,1758094245938,-480.0,0.00023287,3]
[385885773,1758094245948,-7367.00434076,0.00023287,2]
[385885774,1758094245957,-501.99100084,0.00023323,2]
[385885775,1758094245967,-824.801,0.00023335,2]
[385885776,1758094245976,-480.0,0.00023561,3]
[385885777,1758094245985,-6210.46,0.00023561,3]
[385885778,1758094245994,-480.0,0.00023561,3]
[385885779,1758094246003,-480.0,0.00023561,3]
[385885780,1758094246013,-480.0,0.00023561,3]
[385885781,1758094246022,-3127.92,0.00023561,3]
[385885782,1758094246031,-480.0,0.00023561,3]
[385885783,1758094246040,-480.0,0.00023561,3]
[385885784,1758094246049,-2286.39,0.00023561,3]
[385885785,1758094246058,-480.0,0.00023561,3]
[385885786,1758094246067,-480.0,0.00023561,3]
[385885787,1758094246076,-1465.18,0.00023561,3]
[385885788,1758094246085,-480.0,0.00023561,3]
[385885789,1758094246094,-616.93,0.00023561,3]
[385885790,1758094246103,-886.55,0.00023561,3]
[385885791,1758094246112,-862.13,0.00023561,3]
[385885792,1758094246121,-537.46,0.00023561,3]
[385885793,1758094246130,-480.0,0.00023561,3]
[385885794,1758094246140,-595.84,0.00023561,3]
[385885795,1758094246149,-861.17,0.00023561,3]
[385885796,1758094246158,-480.0,0.00023561,3]
[385885797,1758094246167,-480.0,0.00023561,3]
[385885798,1758094246176,-480.0,0.00023561,3]
[385885799,1758094246185,-810.17,0.00023561,3]
[385885800,1758094246194,-480.0,0.00023561,3]
[385885801,1758094246203,-480.0,0.00023561,3]
[385885802,1758094246212,-1135.63,0.00023561,3]
[385885803,1758094246222,-841.47,0.00023561,3]
[385885804,1758094246231,-480.0,0.00023561,3]
[385885805,1758094246240,-635.38,0.00023561,3]
[385885806,1758094246249,-480.0,0.00023561,3]
[385885807,1758094246258,-480.0,0.00023561,3]
[385885808,1758094246267,-9320.83,0.0002358,2]
[385885809,1758094246275,-468.93663204,0.00023627,2]
[385885810,1758094246285,-663.96556494,0.00023647,2]
[385885811,1758094246294,-654.54858588,0.00023735,2]
[385885812,1758094246303,-1500.0,0.00023754,2]
[385885813,1758094246312,-420.0,0.00023817,2]
[385885814,1758094246322,-511.24,0.00023835,3]
[385885815,1758094246331,-6210.46,0.00023835,3]
[385885816,1758094246340,-480.0,0.00023835,3]
[385885817,1758094246349,-480.0,0.00023835,3]
[385885818,1758094246358,-480.0,0.00023835,3]
[385885819,1758094246367,-3127.92,0.00023835,3]
[385885820,1758094246377,-480.0,0.00023835,3]
[385885821,1758094246386,-480.0,0.00023835,3]